[Event "10th Norway Chess Blitz 2022"]
[Site "Stavanger"]
[Date "2022.05.30"]
[Round "1.1"]
[White "Radjabov, Teimour"]
[Black "Carlsen, Magnus"]
[Result "1/2-1/2"]
[ECO "D80"]
[WhiteElo "2753"]
[BlackElo "2864"]
[Annotator "TA"]
[PlyCount "135"]
[EventDate "2022.05.30"]
[EventType "tourn"]
[EventCountry "NOR"]
[SourceTitle "playchess.com"]
[Source "ChessBase"]
[SourceQuality "1"]
[TimeControl "180+2"]

{[%evp 9,135,20,19,22,23,19,25,5,22,22,17,28,67,35,87,71,73,62,128,112,125,108,117,114,127,95,95,93,91,76,70,23,33,21,27,34,43,36,54,72,60,62,66,54,71,43,53,0,72,54,51,50,66,26,29,26,26,26,27,15,57,0,0,0,0,-11,-20,-13,0,0,0,0,0,0,0,-20,-28,-47,0,-4,0,0,-4,-5,-7,-51,0,-12,0,0,0,0,0,-3,-8,-8,0,0,0,0,0,0,0,0,8,8,8,8,9,9,14,14,20,13,13,13,14,13,18,14,14,14,14,8,8,8,8,0]} 1. d4 {[%emt 0:00:01]} Nf6 {[%emt 0:00:02]} 2. c4 {[%emt 0:00:01]} g6 {[%emt 0:00:02]} 3. Nc3 {[%emt 0:00:02]} d5 {[%emt 0:00:01]} 4. Bg5 {[%emt 0:00:02]} c5 {[%emt 0:00:16]} 5. Bxf6 {[%emt 0:00:18]} exf6 {[%emt 0:00:02]} 6. cxd5 {[%emt 0:00:07] D80: Grünfeld: Unusual White 4th moves and 4 Bg5.} Qb6 {[%emt 0:00:10][%csl LRb2,LRd4]} 7. e3 {[%emt 0:00:21]} cxd4 {[%emt 0:00:09]} ({Much less strong is} 7... Qxb2 8. Bb5+ Bd7 9. Bxd7+ (9. Qc1 Qxc1+ 10. Rxc1 cxd4 $11) 9... Nxd7 10. Nge2 $16) 8. Bb5+ {[%emt 0:00:13] [#] White has an edge.} Bd7 $146 {[%emt 0:00:08] [#]} ({Predecessor:} 8... Nd7 9. Qxd4 Qxd4 10. exd4 a6 11. Bxd7+ Bxd7 12. Nf3 Rc8 13. O-O Bb4 14. Ne4 Ke7 {0-1 (37) Zakhartsov,V (2506)-Tari,A (2639) Chess.com INT 2021}) 9. Qxd4 $1 {[%emt 0:00:12]} Qxd4 {[%emt 0:00:24]} 10. exd4 {[%emt 0:00:02]} a6 {[%emt 0:00:21]} 11. Bc4 {[%emt 0:00:01]} Bc8 {[%emt 0:00:21]} ({Black should try} 11... Bg7 $14) 12. Nf3 {[%emt 0:00:07]} Nd7 {[%emt 0:00:02]} 13. O-O {[%emt 0:00:02] Strongly threatening Rfe1+.} Nb6 {[%emt 0:00:34]} (13... Bd6 $14) 14. Rfe1+ {[%emt 0:00:05]} Kd8 {[%emt 0:00:05]} 15. Bb3 {[%emt 0:00:01] White is more active.} Bg4 {[%emt 0:00:08]} 16. Nd2 {[%emt 0:00:03]} Nc8 {[%emt 0:00:05]} 17. Nde4 {[%emt 0:00:11]} Bf5 {[%emt 0:00:09]} 18. Nxf6 {[%emt 0:00:36] [#] aiming for Re8+.} Nd6 {[%emt 0:00:01] Against Re8+} 19. h3 {[%emt 0:00:06]} Bg7 {[%emt 0:00:03]} 20. Ng4 {[%emt 0:00:02]} (20. Nfe4 $14 Nxe4 21. Nxe4 Bxe4 22. Rxe4) 20... Bxd4 $11 {[%emt 0:00:07]} 21. Rad1 {[%emt 0:00:01]} Bxc3 {[%emt 0:00:05]} 22. bxc3 {[%emt 0:00:01]} Bxg4 {[%emt 0:00:01]} 23. hxg4 {[%emt 0:00:01]} h5 {[%emt 0:00:03]} 24. gxh5 {[%emt 0:00:09]} Rxh5 {[%emt 0:00:01]} 25. c4 {[%emt 0:00:12] Threatens to win with c5.} Rc8 {[%emt 0:00:02]} 26. Rd4 {[%emt 0:00:01]} Kd7 {[%emt 0:00:12]} 27. Ba4+ {[%emt 0:00:10]} Kd8 {[%emt 0:00:09]} 28. Bb3 {[%emt 0:00:17]} Kd7 {[%emt 0:00:02]} 29. g3 {[%emt 0:00:11]} Rhh8 {[%emt 0:00:06]} 30. Kg2 {[%emt 0:00:03]} Rhe8 {[%emt 0:00:02]} 31. Rxe8 {[%emt 0:00:05]} Kxe8 $14 {[%emt 0:00:05][%mdl 4096] Endgame KRB-KRN} 32. Kf3 {[%emt 0:00:03]} Ke7 {[%emt 0:00:01]} 33. Ke2 {[%emt 0:00:02]} b6 {[%emt 0:00:04]} 34. Kd3 {[%emt 0:00:02]} Rh8 {[%emt 0:00:01]} 35. c5 {[%emt 0:00:08]} (35. Rf4 $14) 35... bxc5 $11 {[%emt 0:00:02]} 36. Ra4 {[%emt 0:00:01]} Ra8 {[%emt 0:00:01]} 37. Bc4 {[%emt 0:00:06]} a5 {[%emt 0:00:01]} 38. Bb3 {[%emt 0:00:03]} Nc8 {[%emt 0:00:02]} 39. Re4+ {[%emt 0:00:02]} Kd6 {[%emt 0:00:04]} 40. Rf4 {[%emt 0:00:00]} f5 {[%emt 0:00:02]} 41. g4 Ke5 {[%emt 0:00:02]} 42. Ke3 {[%emt 0:00:02]} Nd6 {[%emt 0:00:01][%cal Oc5c4]} 43. Ra4 {[%emt 0:00:06] Inhibits c4.} g5 {[%emt 0:00:04]} 44. gxf5 {[%emt 0:00:01]} Nxf5+ {[%emt 0:00:00]} 45. Kd3 {[%emt 0:00:00]} Nd6 {[%emt 0:00:02] Prevents Re4+.} 46. Rg4 {[%emt 0:00:01]} Kf5 {[%emt 0:00:01]} 47. f3 {[%emt 0:00:03]} Rf8 {[%emt 0:00:02]} (47... Rh8 $15) 48. Bc2 {[%emt 0:00:02] The position is equal.} Kf6 {[%emt 0:00:04]} 49. f4 {[%emt 0:00:04]} gxf4 {[%emt 0:00:02]} 50. Rxf4+ {[%emt 0:00:01]} Ke7 {[%emt 0:00:00]} 51. Ra4 {[%emt 0:00:01]} Rf3+ {[%emt 0:00:02]} 52. Ke2 {[%emt 0:00:01]} Rh3 {[%emt 0:00:02]} 53. Rxa5 {[%emt 0:00:01]} c4 {[%emt 0:00:00]} 54. Ra6 {[%emt 0:00:05]} Rh5 {[%emt 0:00:04]} 55. a4 {[%emt 0:00:02]} Rxd5 {[%emt 0:00:01]} 56. Ke3 {[%emt 0:00:02]} c3 {[%emt 0:00:04]} 57. Rc6 {[%emt 0:00:01] Inhibits Nc4+.} Nf5+ {[%emt 0:00:01]} 58. Ke4 {[%emt 0:00:09]} Ra5 {[%emt 0:00:01]} 59. Rxc3 {[%emt 0:00:01]} Nd6+ {[%emt 0:00:01]} 60. Kd4 {[%emt 0:00:01]} Kd7 {[%emt 0:00:01]} 61. Bb3 {[%emt 0:00:02]} Nc8 {[%emt 0:00:03]} 62. Kc4 {[%emt 0:00:02]} Na7 {[%emt 0:00:04]} 63. Kb4 {[%emt 0:00:01]} Rg5 {[%emt 0:00:02]} 64. Bc4 {[%emt 0:00:05]} ({Resist} 64. Rd3+ Kc6 $16) 64... Nc6+ {[%emt 0:00:02]} 65. Ka3 {[%emt 0:00:00]} Rc5 {[%emt 0:00:01]} 66. Be6+ {[%emt 0:00:05]} Kd6 {[%emt 0:00:01]} 67. Rxc5 {[%emt 0:00:01]} Kxc5 {[%emt 0:00:01]} 68. a5 {[%emt 0:00:02] Weighted Error Value: White=0.09 (flawless) /Black=0.07 (flawless)} 1/2-1/2

[Event "10th Norway Chess Blitz 2022"]
[Site "Stavanger"]
[Date "2022.05.30"]
[Round "1.2"]
[White "Giri, Anish"]
[Black "Topalov, Veselin"]
[Result "1-0"]
[ECO "B67"]
[WhiteElo "2761"]
[BlackElo "2730"]
[Annotator "TA"]
[PlyCount "81"]
[EventDate "2022.05.30"]
[EventType "tourn"]
[EventCountry "NOR"]
[SourceTitle "playchess.com"]
[Source "ChessBase"]
[SourceQuality "1"]
[TimeControl "180+2"]

{[%evp 16,81,37,20,25,23,37,20,31,25,18,45,35,56,47,69,112,111,105,118,116,35,46,37,33,25,37,38,74,18,27,19,23,20,18,19,37,28,34,19,31,8,43,51,79,30,77,0,196,195,191,0,0,0,188,7,663,650,645,641,610,600,1081,1073,1068,977,725,689]} 1. e4 {[%emt 0:00:01]} c5 {[%emt 0:00:01]} 2. Nf3 {[%emt 0:00:01]} d6 {[%emt 0:00:01]} 3. d4 {[%emt 0:00:01]} cxd4 {[%emt 0:00:02]} 4. Nxd4 {[%emt 0:00:01]} Nf6 {[%emt 0:00:02]} 5. Nc3 {[%emt 0:00:01]} Nc6 {[%emt 0:00:01]} 6. Bg5 {[%emt 0:00:02]} e6 {[%emt 0:00:02]} 7. Qd2 {[%emt 0:00:01]} a6 {[%emt 0:00:04]} 8. O-O-O {[%emt 0:00:02]} Bd7 {[%emt 0:00:02] 8...Bd7 is better than 8...h6.} 9. Kb1 {[%emt 0:00:02]} Nxd4 {[%emt 0:00:26] B67: Sicilian: Richter-Rauzer: 7...a6 8 0-0-0 Bd7, lines without 9 f4 Be7.} 10. Qxd4 {[%emt 0:00:01]} h6 {[%emt 0:00:10]} 11. Bd2 {[%emt 0:00:20] [#]} Be7 $146 {[%emt 0:00:12] The position is equal.} ({Predecessor:} 11... b5 12. f3 Qb8 13. h4 b4 14. Ne2 a5 15. g4 e5 16. Qg1 Be6 17. g5 Nh5 {½-½ (66) Giri,A (2776)-Firouzja,A (2759) chess24.com INT 2021}) 12. f3 {[%emt 0:00:01]} b5 {[%emt 0:00:24]} 13. Bd3 {[%emt 0:00:23]} e5 {[%emt 0:00:11]} 14. Qf2 {[%emt 0:00:02]} Be6 {[%emt 0:00:01]} 15. g4 {[%emt 0:00:25]} Nd7 {[%emt 0:00:05] [#]} 16. h4 $1 {[%emt 0:00:13]} Rc8 {[%emt 0:00:03]} 17. Nd5 {[%emt 0:00:11]} Nc5 {[%emt 0:00:12]} 18. Be3 {[%emt 0:00:16] White is more active.} (18. Bf1 $16) 18... Bxd5 $14 {[%emt 0:00:02]} 19. exd5 {[%emt 0:00:02]} Nxd3 {[%emt 0:00:02]} 20. Rxd3 {[%emt 0:00:05]} Qd7 {[%emt 0:00:16]} 21. Rg1 {[%emt 0:00:18]} g5 {[%emt 0:00:04] Inhibits f4.} 22. hxg5 {[%emt 0:00:16]} ({White should play} 22. Re1 $16) 22... hxg5 $11 {[%emt 0:00:01]} 23. Rdd1 {[%emt 0:00:01]} Kf8 {[%emt 0:00:07]} 24. Rh1 {[%emt 0:00:02]} Kg7 {[%emt 0:00:01]} 25. Qd2 {[%emt 0:00:09]} f6 {[%emt 0:00:25]} 26. Qd3 {[%emt 0:00:01]} Rce8 {[%emt 0:00:12]} 27. a3 {[%emt 0:00:07]} Bd8 {[%emt 0:00:01]} 28. Qe4 {[%emt 0:00:03]} Qf7 {[%emt 0:00:08]} 29. a4 {[%emt 0:00:07]} Ba5 {[%emt 0:00:04]} 30. Qd3 {[%emt 0:00:05]} (30. axb5 $16 axb5 31. b4) 30... Qd7 {[%emt 0:00:02]} (30... bxa4 $11 31. Qxa6 Qc7) 31. Rh5 {[%emt 0:00:07]} (31. axb5 $16 Qxb5 32. Qf5 (32. c4 Qb7 $14)) 31... bxa4 $2 {[%emt 0:00:07]} ({Resist} 31... e4 32. fxe4 Qxg4 33. Rxh8 Rxh8 34. Rg1 $16) (31... Rxh5 $1 $11 {and Black is okay.} 32. gxh5 Kh8) 32. Rdh1 $18 {[%emt 0:00:08] Intending Rh7+ and mate.} ({Worse is} 32. Qxa6 Rxh5 33. gxh5 Bd8 $11) 32... Rxh5 {[%emt 0:00:01]} 33. gxh5 {[%emt 0:00:05]} (33. Rxh5 $18 {White threatens Qh7+ and mate.} Rh8 34. Rxh8 (34. Qxa6 Rxh5 35. gxh5 Bd8 $11) 34... Kxh8 35. Qxa6) 33... Qf7 {[%emt 0:00:03]} 34. Qf5 {[%emt 0:00:07] Black must now prevent h6+.} a3 $2 {[%emt 0:00:03]} (34... Rh8 $11) 35. b3 $2 {[%emt 0:00:02]} ({White must play} 35. h6+ $18 Kh8 {[#]} 36. Bxg5 $1) 35... Rb8 $2 {[%emt 0:00:04][%mdl 8192] [#] A mistake that costs the game.} (35... Rh8 $11) 36. Bxg5 $1 {[%emt 0:00:13][%mdl 576] Promotion. White is clearly winning.} fxg5 {[%emt 0:00:03]} (36... Kf8 37. Bh4) 37. h6+ {[%emt 0:00:02]} Kf8 {[%emt 0:00:02]} 38. h7 {[%emt 0:00:00]} Rxb3+ {[%emt 0:00:04]} 39. Kc1 {[%emt 0:00:08]} Qxf5 {[%emt 0:00:03]} 40. h8=Q+ {[%emt 0:00:02]} Ke7 {[%emt 0:00:00]} 41. Rh7+ {[%emt 0:00:02] Weighted Error Value: White=0.26 (precise) /Black=0.50} 1-0

[Event "10th Norway Chess Blitz 2022"]
[Site "Stavanger"]
[Date "2022.05.30"]
[Round "1.3"]
[White "Wang, Hao"]
[Black "So, Wesley"]
[Result "1-0"]
[ECO "D20"]
[WhiteElo "2744"]
[BlackElo "2766"]
[Annotator "TA"]
[PlyCount "59"]
[EventDate "2022.05.30"]
[EventType "tourn"]
[EventCountry "NOR"]
[SourceTitle "playchess.com"]
[Source "ChessBase"]
[SourceQuality "1"]
[TimeControl "180+2"]

{[%evp 9,59,39,40,44,70,71,57,59,60,76,63,0,0,1,41,25,51,30,24,40,61,64,66,73,75,68,66,81,115,112,150,154,129,149,221,217,610,609,591,590,600,602,569,514,468,427,1214,-110,454,464,29989,29990]} 1. d4 {[%emt 0:00:02]} d5 {[%emt 0:00:01]} 2. c4 {[%emt 0:00:02]} dxc4 {[%emt 0:00:02]} 3. e4 {[%emt 0:00:03]} b5 {[%emt 0:00:03]} 4. a4 {[%emt 0:00:01]} c6 {[%emt 0:00:01]} 5. axb5 {[%emt 0:00:03]} cxb5 {[%emt 0:00:01]} 6. Nc3 {[%emt 0:00:02] D20: Queen's Gambit Accepted: 3 e3 and 3 e4.} Qb6 {[%emt 0:00:02]} 7. Nd5 {[%emt 0:00:14]} Qb7 {[%emt 0:00:01]} 8. Bf4 {[%emt 0:00:01] White is slightly better.} e5 $1 {[%emt 0:00:02]} 9. Bxe5 {[%emt 0:00:02] Black must now prevent Ne2.} Nd7 {[%emt 0:00:02] [#]} 10. Ne2 $1 $146 {[%emt 0:00:06][%mdl 8] White is much more active. An important novelty.} ({White should try} 10. Bf4 $1 $14) ({Predecessor:} 10. Bf4 Ngf6 11. Nc7+ Kd8 12. Nxa8 Qxe4+ 13. Ne2 Qxa8 14. Qd2 Nd5 15. Nc3 Bb4 16. Be2 {1-0 (65) Aronian,L (2785)-Nakamura,H (2750) Berlin 2022}) 10... Nxe5 $11 {[%emt 0:00:18]} 11. dxe5 {[%emt 0:00:01]} Ne7 {[%emt 0:00:05]} 12. Nec3 $1 {[%emt 0:00:05][%cal Od5c7] Strongly threatening Nc7+! Pair of Knights!} a6 {[%emt 0:00:26] [#]} 13. Nxb5 $1 {[%emt 0:00:40] Threatening mate with Ndc7+.} Nxd5 {[%emt 0:00:02]} (13... axb5 $2 14. Rxa8 Nc6 15. Ra1 $18) 14. Qxd5 $40 {[%emt 0:00:04][%cal Oe1c1][%mdl 128] Hoping for 0-0-0! White is up to no good.} Bb4+ {[%emt 0:00:12]} 15. Nc3 {[%emt 0:00:05]} Bxc3+ {[%emt 0:00:22]} 16. bxc3 {[%emt 0:00:01]} Qb2 {[%emt 0:00:01][%csl LRa1,LRc3]} 17. Qa5 {[%emt 0:00:49]} (17. Qxa8 $2 Qxa1+ 18. Ke2 Qb2+ 19. Kd1 O-O $19) 17... Be6 {[%emt 0:00:28]} 18. Qa3 {[%emt 0:00:32]} Qb7 {[%emt 0:00:32]} 19. f3 {[%emt 0:00:06]} Qb6 {[%emt 0:00:12]} 20. Be2 $1 {[%emt 0:00:06]} Qe3 {[%emt 0:00:14]} 21. Rd1 {[%emt 0:00:02]} a5 {[%emt 0:00:26]} (21... f6 $16 {is a better defense.} 22. Rb1 (22. exf6 gxf6 23. Rb1 Rd8 $16) 22... Rf8) 22. Qd6 $1 $18 {[%emt 0:00:14] White threatens Qc6+ and mate.} Qxc3+ $2 {[%emt 0:00:00]} (22... Rc8 23. Qd4 Qf4) 23. Kf2 {[%emt 0:00:02] Intending Qc6+ and mate.} Qb4 {[%emt 0:00:09]} 24. Qc6+ {[%emt 0:00:06]} Ke7 {[%emt 0:00:00]} 25. Qc7+ {[%emt 0:00:03]} Ke8 {[%emt 0:00:03]} 26. Rd6 {[%emt 0:00:08]} Qb8 {[%emt 0:00:02]} 27. Qc6+ {[%emt 0:00:04]} Ke7 {[%emt 0:00:01] [#]} (27... Kf8 $142 28. Rhd1 (28. Bxc4 Qb2+ 29. Kg3 Rc8 $16) 28... h5 29. Bxc4 Rh6 30. Bxe6 fxe6 31. Rxe6 Qb2+ 32. Kg1 Rxe6 33. Qxa8+ Kf7 34. Qxa5 Rxe5) 28. Rhd1 $2 {[%emt 0:00:03] [#]} (28. Bxc4 Qb2+ 29. Ke3 (29. Be2 Rhc8 $15) 29... Rhc8 30. Rxe6+ Kf8 $16) (28. Qc5 $1 $18 {[%cal Od6e6] White wants to mate with Rxe6+!} Ke8 29. Rhd1) 28... Rc8 $2 {[%emt 0:00:02][%mdl 8192]} (28... Qa7+ $1 $17 {and life is bright.} 29. Kf1 Rhc8) 29. Rxe6+ $1 {[%emt 0:00:02]} fxe6 {[%emt 0:00:01]} (29... Kf8 $18 30. Qd6+ Qxd6 31. Rexd6 a4) 30. Rd7+ {[%emt 0:00:03][%mdl 64] Deflection.  Weighted Error Value: White=0.27 (precise) /Black=0.75} 1-0

[Event "10th Norway Chess Blitz 2022"]
[Site "Stavanger"]
[Date "2022.05.30"]
[Round "1.5"]
[White "Mamedyarov, Shakhriyar"]
[Black "Vachier-Lagrave, Maxime"]
[Result "1-0"]
[ECO "D27"]
[WhiteElo "2770"]
[BlackElo "2750"]
[Annotator "TA"]
[PlyCount "63"]
[EventDate "2022.05.30"]
[EventType "tourn"]
[EventCountry "NOR"]
[SourceTitle "playchess.com"]
[Source "ChessBase"]
[SourceQuality "1"]
[TimeControl "180+2"]

{[%evp 14,63,30,26,27,25,25,24,36,10,11,17,35,27,20,31,37,12,41,33,67,54,64,56,68,50,56,0,0,0,0,-19,-15,-31,0,0,0,0,0,-156,-22,-48,252,258,531,525,498,481,29987,29988,29988,29989]} 1. d4 {[%emt 0:00:01]} d5 {[%emt 0:00:01]} 2. c4 {[%emt 0:00:04]} dxc4 {[%emt 0:00:02]} 3. Nf3 {[%emt 0:00:02]} Nf6 {[%emt 0:00:01]} 4. e3 {[%emt 0:00:02]} e6 {[%emt 0:00:02]} 5. Bxc4 {[%emt 0:00:02]} a6 {[%emt 0:00:01]} 6. O-O {[%emt 0:00:09]} c5 {[%emt 0:00:02]} 7. b3 {[%emt 0:00:04]} cxd4 {[%emt 0:00:01]} 8. Nxd4 {[%emt 0:00:04]} Be7 {[%emt 0:00:02] D27: Queen's Gambit Accepted: Classical main line: 7 e4!? and 7 a4.} 9. Be2 {[%emt 0:00:06]} O-O {[%emt 0:00:03]} 10. Bb2 {[%emt 0:00:03]} b5 {[%emt 0:00:06] White has an edge.} 11. Nd2 {[%emt 0:00:04]} Bb7 {[%emt 0:00:06]} 12. a4 $1 {[%emt 0:00:01][%mdl 4] is more profitable than 12.Rc1 at the moment.} bxa4 {[%emt 0:00:02]} (12... Qd5 13. Bf3 Qd7 14. axb5 $16) 13. Rxa4 {[%emt 0:00:01]} Nbd7 {[%emt 0:00:04]} 14. Qa1 {[%emt 0:00:01][%cal Re2a6] [#]} Nc5 $146 {[%emt 0:00:06]} ({Predecessor:} 14... Nb6 15. Ra2 Bb4 16. N2f3 a5 17. Nc2 Bd5 18. Nxb4 axb4 19. Rxa8 Nxa8 20. Bd4 Bxb3 {1-0 (53) Wagh,S (2210)-Dev,S (2248) Paracin 2022}) 15. Ra5 {[%emt 0:00:01]} Qb6 {[%emt 0:00:10]} 16. Nc4 {[%emt 0:00:11]} Qc7 {[%emt 0:00:01]} 17. Rc1 {[%emt 0:00:13]} Bd5 {[%emt 0:00:02]} 18. b4 {[%emt 0:00:13]} Ncd7 {[%emt 0:00:23]} 19. e4 {[%emt 0:00:37]} (19. Rxa6 $6 Bxb4 20. Rxa8 Rxa8 $11) 19... Nxe4 {[%emt 0:00:48] [#]} 20. Nf5 $1 {[%emt 0:00:02]} exf5 $11 {[%emt 0:00:26]} (20... Bxb4 21. Rxd5 $1 (21. Bxg7 f6 $16) 21... Qf4 22. Bxg7 $1 (22. Rxd7 Qxf2+ 23. Kh1 Qxe2 $14) 22... Qxf2+ 23. Kh1 exf5 24. Bf3 $16 (24. Rxd7 Qxe2 25. Bxf8 Bxf8 $17)) (20... Bf6 21. Nce3) 21. Rxd5 {[%emt 0:00:01]} Qf4 {[%emt 0:00:10]} 22. Bf3 {[%emt 0:00:41] A strong pair of Bishops.} ({Reject} 22. Rxd7 Qxf2+ 23. Kh1 Qxe2 24. Rxe7 (24. Bxg7 $2 Bg5 $19) 24... Nf2+ 25. Kg1 Qxe7 $17) 22... Ndf6 {[%emt 0:00:14]} 23. Ne3 {[%emt 0:00:24][%cal Bc4e3,Be3d5,Bd5c7][%mdl 32]} Nxd5 {[%emt 0:00:39]} (23... Nxf2 $5 24. Kxf2 (24. Rxf5 $2 Qxe3 25. Bd4 Qd3 $19) 24... Ng4+ 25. Nxg4 fxg4 $11) 24. Nxd5 {[%emt 0:00:02]} Qd6 {[%emt 0:00:02]} 25. Rd1 {[%emt 0:00:01][%cal Od5f6]} Rfd8 {[%emt 0:00:09] Threatens to win with ...Qe6.} 26. Bxg7 $2 {[%emt 0:00:02] [#]} (26. g4 $1 $11 Bg5 27. Nf6+ gxf6 28. Rxd6 Rxd6 29. b5) 26... f6 {[%emt 0:00:02]} (26... Qe6 $1 $17 27. Nxe7+ Qxe7) 27. Bh6 $1 {[%emt 0:00:18] Chess con chili.} Qe6 $2 {[%emt 0:00:04][%mdl 8192] A mistake that costs the game.} (27... Bf8 $15 {stays ahead.} 28. Be3 Qc6) 28. Nc7 $1 $18 {[%emt 0:00:01][%csl LRa8,LRe6]} Qb6 $2 {[%emt 0:00:05]} (28... Rxd1+ $2 29. Qxd1 Qd6 30. Nxa8 $18) (28... Qe5 {was worth a try.} 29. Qa2+ (29. Nxa8 Qxa1 30. Rxa1 Rxa8 $18) 29... Kh8 30. Nxa8 Rxa8) 29. Bxe4 {[%emt 0:00:09]} fxe4 {[%emt 0:00:03]} 30. Nxa8 {[%emt 0:00:02]} Rxa8 {[%emt 0:00:02]} (30... Qxb4 $18 31. Rxd8+ Bxd8) 31. Qa2+ {[%emt 0:00:01]} ({Weaker is} 31. Rd7 Qe6 32. Qd4 Kf7 $16) 31... Kh8 {[%emt 0:00:01]} 32. Qf7 {[%emt 0:00:01] Weighted Error Value: White=0.09 (flawless) /Black=0.80} 1-0

[Event "10th Norway Chess Blitz 2022"]
[Site "Stavanger"]
[Date "2022.05.30"]
[Round "2.1"]
[White "Carlsen, Magnus"]
[Black "Vachier-Lagrave, Maxime"]
[Result "1-0"]
[ECO "A20"]
[WhiteElo "2864"]
[BlackElo "2750"]
[Annotator "TA"]
[PlyCount "99"]
[EventDate "2022.05.30"]
[EventType "tourn"]
[EventCountry "NOR"]
[SourceTitle "playchess.com"]
[Source "ChessBase"]
[SourceQuality "1"]
[TimeControl "180+2"]

{[%evp 9,99,0,41,42,44,40,23,17,20,13,19,0,4,-22,-23,-16,-15,-14,-16,-51,-11,-16,0,-234,0,0,0,-19,-17,-35,0,-38,109,109,109,109,109,109,109,109,140,140,140,140,148,147,147,147,147,148,152,155,155,141,151,161,162,157,275,43,55,0,0,0,7,8,336,300,932,868,1151,1631,1729,1365,1257,1000,1706,1300,12837,1775,12838,12838,12838,7116,12841,12840,12839,12839,12845,12845,29989,29990]} 1. c4 {[%emt 0:00:01]} e5 {[%emt 0:00:01][%cal Be7e5,Be5e4][%mdl 32]} 2. g3 {[%emt 0:00:03]} c6 {[%emt 0:00:03]} 3. d4 {[%emt 0:00:02]} e4 {[%emt 0:00:14]} 4. d5 {[%emt 0:00:05]} Nf6 {[%emt 0:00:05]} 5. d6 {[%emt 0:00:02]} g6 {[%emt 0:00:38]} 6. Nc3 {[%emt 0:00:08] A20: English Opening: 1...e5.} Bg7 {[%emt 0:00:01]} 7. Bg2 {[%emt 0:00:03]} O-O {[%emt 0:00:03]} 8. Nxe4 {[%emt 0:00:10] White has an edge.} Nxe4 {[%emt 0:00:02]} 9. Bxe4 {[%emt 0:00:01]} Re8 {[%emt 0:00:01]} 10. Bg2 {[%emt 0:00:14]} Qa5+ {[%emt 0:00:07]} 11. Bd2 {[%emt 0:01:21]} Qc5 {[%emt 0:00:01]} 12. Bc3 {[%emt 0:00:01] [#]} Bxc3+ $146 {[%emt 0:00:05]} ({Predecessor:} 12... Qxc4 13. Bxg7 Kxg7 14. Nf3 Na6 15. O-O b5 16. Rc1 Qg4 17. h3 Qe6 18. Ng5 Qe5 {1-0 (64) Pinheiro,I (2320)-Bommini,M (2108) Chess.com INT 2022}) 13. bxc3 {[%emt 0:00:01]} Qxc4 {[%emt 0:00:07]} 14. Qd2 {[%emt 0:00:01]} b6 {[%emt 0:00:13]} 15. h4 {[%emt 0:00:01]} h5 {[%emt 0:00:05]} 16. Nh3 $2 {[%emt 0:00:07] [#]} (16. Bf3 $11) 16... Na6 $2 {[%emt 0:00:15]} (16... Rxe2+ $1 $19 {[%mdl 512]} 17. Qxe2 Qxc3+ 18. Qd2 Qxa1+ 19. Qd1 Qc3+ 20. Qd2 Qa1+ 21. Qd1 Qe5+ 22. Kf1 Bb7) 17. O-O $11 {[%emt 0:00:20]} Nc5 {[%emt 0:00:02] Against e4} (17... Qxe2 18. Qh6 Re5 19. Rae1 Qxe1 20. Rxe1 Rxe1+ 21. Bf1 Re5 22. Bc4) 18. Rfe1 {[%emt 0:00:22][%cal Oe2e4]} (18. Qh6 Qxc3 19. Rac1 (19. Ng5 Qg7 $17) 19... Qb2 $17) 18... Ba6 {[%emt 0:00:04][%cal Re8e2]} 19. Bf3 {[%emt 0:00:07]} Ne4 {[%emt 0:00:19]} 20. Bxe4 {[%emt 0:00:01]} (20. Qh6 $5 {[%cal Rf3e4]} Qe6 21. Bxe4 Qxh3 22. Bxg6 fxg6 23. Qxg6+ Kf8 24. Qh6+ (24. Qxh5 Qe6 $11) 24... Kg8 25. Qg5+ Kf8 26. Qxh5 $11) 20... Rxe4 {[%emt 0:00:01]} (20... Qxe4 $15 21. a4 Qg4) 21. Qh6 $16 {[%emt 0:00:02] [#] Intending Ng5 and mate.} Re5 {[%emt 0:00:22]} (21... Rxe2 22. Ng5 Rxe1+ 23. Rxe1) 22. Ng5 {[%emt 0:00:01]} Rxg5 {[%emt 0:00:02]} 23. Qxg5 {[%emt 0:00:01]} (23. hxg5 Qxc3 24. Rac1 Qa3 $17) 23... Re8 {[%emt 0:00:01] Prevents Qe7.} 24. Qd2 {[%emt 0:00:04]} c5 {[%emt 0:00:05]} 25. f3 {[%emt 0:00:02]} Bb7 {[%emt 0:00:11]} 26. Kf2 {[%emt 0:00:03]} Re6 {[%emt 0:00:02]} 27. a4 {[%emt 0:00:10][%cal Ba2a4,Ba4a5,Ba5a6][%mdl 32]} Bc6 {[%emt 0:00:02]} 28. a5 {[%emt 0:00:04]} b5 {[%emt 0:00:01]} 29. a6 {[%emt 0:00:01]} Re5 {[%emt 0:00:09]} (29... b4 $2 30. cxb4 cxb4 31. Rac1 Qxa6 32. Qxb4) 30. e4 {[%emt 0:00:07]} Qe6 {[%emt 0:00:10]} 31. Rad1 {[%emt 0:00:06]} Kg7 {[%emt 0:00:11]} 32. Qf4 {[%emt 0:00:03]} f6 {[%emt 0:00:01]} 33. g4 {[%emt 0:00:04]} g5 {[%emt 0:00:06]} (33... hxg4 $16 34. Qxg4 Qxg4 35. fxg4 Bxe4) 34. Qg3 $2 {[%emt 0:00:04]} ({Only move:} 34. hxg5 $18 {[%cal Od1d5] aiming for Rd5!} fxg5 35. Qe3) 34... hxg4 {[%emt 0:00:14]} 35. hxg5 {[%emt 0:00:03]} (35. Qxg4 $14 Qxg4 36. fxg4) 35... Rxg5 $11 {[%emt 0:00:02]} 36. f4 {[%emt 0:00:02]} Rh5 {[%emt 0:00:01] ...Rh3 is the strong threat.} 37. f5 $36 {[%emt 0:00:02][%mdl 2048] White has good play. Really sharp!} Qf7 {[%emt 0:00:05][%mdl 8192] This costs Black the game.} (37... Qb3 $11 {and Black is okay.} 38. Qxg4+ Rg5) 38. Qxg4+ $18 {[%emt 0:00:02]} Kf8 $2 {[%emt 0:00:02]} (38... Rg5 39. Qf4 (39. Qe2 Kf8 $16) 39... Qa2+ 40. Qd2 Qf7) 39. Rh1 {[%emt 0:00:03]} Qa2+ {[%emt 0:00:02]} 40. Qe2 {[%emt 0:00:02]} Qxe2+ {[%emt 0:00:02]} 41. Kxe2 {[%emt 0:00:01]} Rxh1 {[%emt 0:00:02]} 42. Rxh1 {[%emt 0:00:01] And now Rh8+ would win.} Bxe4 {[%emt 0:00:01][%mdl 4096] Endgame KR-KB} 43. Rh8+ {[%emt 0:00:01]} Kf7 {[%emt 0:00:02]} 44. Ke3 {[%emt 0:00:02]} (44. Rh7+ $142 Kf8 45. Rxd7) 44... Bc6 {[%emt 0:00:04]} 45. Rc8 {[%emt 0:00:02]} b4 {[%emt 0:00:01]} 46. cxb4 {[%emt 0:00:01]} cxb4 {[%emt 0:00:01]} 47. Rc7 {[%emt 0:00:02]} b3 {[%emt 0:00:02]} 48. Kd2 {[%emt 0:00:01]} ({Not} 48. Rxa7 $2 b2 49. Rc7 b1=Q $19) 48... Be4 {[%emt 0:00:02]} 49. Rxd7+ {[%emt 0:00:02]} Ke8 {[%emt 0:00:01]} 50. Re7+ {[%emt 0:00:02] Weighted Error Value: White=0.29 (precise) /Black=0.63} 1-0